fUST/lending_fUST_20251011
["ID","MTS","AMOUNT","RATE_DAILY","PERIOD"]
[390829597,1760173885054,-200.0,0.000277,120]
[390829598,1760173885064,-154.7,0.0002771,15]
[390829599,1760173885074,-500.0,0.00027726,9]
[390829600,1760173885083,-500.0,0.00027726,9]
[390829601,1760173885093,-500.0,0.00027726,9]
[390829602,1760173885103,-500.0,0.00027726,9]
[390829603,1760173885112,-150.0,0.00027734,2]
[390829604,1760173885121,-150.546,0.00027734,2]
[390829605,1760173885131,-150.0,0.00027734,2]
[390829606,1760173885140,-207.19,0.00027734,2]
[390829607,1760173885149,-295.112,0.00027734,2]
[390829608,1760173885158,-151.0,0.00027753,30]
[390829609,1760173885168,-587.905615,0.00027753,30]
[390829610,1760173885177,-587.905615,0.00027753,30]
[390829611,1760173885187,-587.905615,0.00027753,30]
[390829612,1760173885196,-587.905615,0.00027753,30]
[390829613,1760173885205,-151.0,0.00027753,30]
[390829614,1760173885215,-151.0,0.00027753,30]
[390829615,1760173885224,-151.0,0.00027753,30]
[390829616,1760173885234,-151.0,0.00027753,30]
[390829617,1760173885249,-151.0,0.00027753,30]
[390829618,1760173885259,-151.0,0.00027753,30]
[390829619,1760173885268,-151.0,0.00027753,30]
[390829620,1760173885279,-151.0,0.00027753,30]
[390829621,1760173885289,-151.0,0.00027753,30]
[390829622,1760173885298,-151.0,0.00027753,30]
[390829623,1760173885307,-151.0,0.00027753,30]
[390829624,1760173885319,-151.0,0.00027753,30]
[390829625,1760173885329,-391.0,0.00027753,2]
[390829626,1760173885339,-500.0,0.00027766,10]
[390829627,1760173885348,-1453.54219421,0.00027768,5]
[390829628,1760173885358,-1500.0,0.00027768,5]
[390829629,1760173885367,-1500.0,0.00027768,5]
[390829630,1760173885377,-1500.0,0.00027768,5]
[390829631,1760173885387,-1500.0,0.00027768,5]
[390829632,1760173885396,-500.0,0.00027768,5]
[390829633,1760173885405,-1500.0,0.00027768,5]
[390829634,1760173885414,-406.76580432,0.0002778,9]
[390829635,1760173885423,-500.0,0.0002778,9]
[390829636,1760173885434,-500.0,0.0002778,9]
[390829637,1760173885444,-500.0,0.0002778,9]
[390829638,1760173885454,-250.0,0.000278,10]
[390829639,1760173885465,-380.0,0.00027803,2]
[390829640,1760173885474,-154.7,0.0002781,15]
[390829641,1760173885484,-6339.42992914,0.0002783,2]
[390829642,1760173885495,-4196.0,0.00027833,2]
[390829643,1760173885504,-349.0,0.00027835,9]
[390829644,1760173885514,-349.0,0.00027835,9]
[390829645,1760173885523,-500.0,0.00027835,9]
[390829646,1760173885533,-1128.01011479,0.00027868,5]
[390829647,1760173885542,-500.0,0.00027868,5]
[390829648,1760173885551,-1500.0,0.00027868,5]
[390829649,1760173885560,-500.0,0.0002789,9]
[390829650,1760173885570,-250.0,0.000279,10]
[390829651,1760173885579,-154.7,0.0002791,15]
[390829652,1760173885588,-822.98081965,0.00027921,5]
[390829653,1760173885597,-500.0,0.00027921,5]
[390829654,1760173885606,-260.54334815,0.00027921,5]
[390829655,1760173885615,-495.03289988,0.00027921,5]
[390829656,1760173885624,-233.46771202,0.00027921,5]
[390829657,1760173885634,-172.23997752,0.00027921,5]
[390829658,1760173885643,-1000.0,0.00027921,5]
[390829659,1760173885652,-502.6556053,0.00027921,5]
[390829660,1760173885662,-151.0,0.00027921,30]
[390829661,1760173885672,-151.0,0.00027921,30]
[390829662,1760173885682,-151.0,0.00027921,30]
[390829663,1760173885691,-151.0,0.00027921,30]
[390829664,1760173885700,-151.0,0.00027921,30]
[390829665,1760173885710,-151.0,0.00027921,30]
[390829666,1760173885719,-151.0,0.00027921,30]
[390829667,1760173885728,-151.0,0.00027921,30]
[390829668,1760173885739,-182.886968,0.00027921,30]
[390829669,1760173885749,-151.0,0.00027921,30]
[390829670,1760173885758,-275.576735,0.00027921,30]
[390829671,1760173885767,-164.284316,0.00027921,30]
[390829672,1760173885777,-151.0,0.00027921,30]
[390829673,1760173885786,-164.284316,0.00027921,30]
[390829674,1760173885795,-151.0,0.00027921,30]
[390829675,1760173885804,-151.0,0.00027921,30]
[390829676,1760173885813,-164.284316,0.00027921,30]
[390829677,1760173885823,-151.0,0.00027921,30]
[390829678,1760173885832,-164.284316,0.00027921,30]
[390829679,1760173885841,-151.0,0.00027921,30]
[390829680,1760173885851,-151.0,0.00027921,30]
[390829681,1760173885860,-151.0,0.00027921,30]
[390829682,1760173885870,-153.074656,0.00027925,9]
[390829683,1760173885879,-155.646148,0.00027925,9]
[390829684,1760173885888,-155.26591,0.00027925,9]
[390829685,1760173885898,-1000.0,0.00027937,30]
[390829686,1760173885907,-151.0,0.00027968,30]
[390829687,1760173885917,-151.0,0.00027968,30]
[390829688,1760173885926,-151.0,0.00027968,30]
[390829689,1760173885935,-151.0,0.00027968,30]
[390829690,1760173885945,-151.0,0.00027968,30]
[390829691,1760173885954,-151.0,0.00027968,30]
[390829692,1760173885963,-151.0,0.00027968,30]
[390829693,1760173885973,-1500.0,0.00027968,5]
[390829694,1760173885982,-1500.0,0.00027968,5]
[390829695,1760173885993,-1500.0,0.00027968,5]
[390829696,1760173886002,-1500.0,0.00027968,5]
[390829697,1760173886012,-502.40639119,0.00027968,5]
[390829698,1760173886021,-1596.01386868,0.00027968,5]
[390829699,1760173886031,-1500.0,0.00027968,5]
[390829700,1760173886040,-1500.0,0.00027968,5]
[390829701,1760173886050,-7641.1,0.00027975,4]
[390829702,1760173886059,-391.0,0.00027998,2]
[390829703,1760173886068,-330.146374,0.00028,10]
[390829704,1760173886077,-250.0,0.00028,7]
[390829705,1760173886086,-671.88187124,0.00028002,5]
[390829706,1760173886095,-154.7,0.0002801,15]
[390829707,1760173886105,-153.074656,0.00028022,10]
[390829708,1760173886114,-155.646148,0.00028022,10]
[390829709,1760173886123,-155.26591,0.00028022,10]
[390829710,1760173886223,-500.0,0.0002804,10]
[390829711,1760173886233,-1500.0,0.00028068,5]
[390829712,1760173886246,-1500.0,0.00028068,5]
[390829713,1760173886255,-1067.0,0.00028083,2]
[390829714,1760173886264,-154.7,0.0002811,15]
[390829715,1760173886274,-360.0,0.00028153,2]
[390829716,1760173886286,-6339.42992914,0.0002818,2]
[390829717,1760173886295,-357.0,0.00028186,2]
[390829718,1760173886305,-153.074656,0.00028187,9]
[390829719,1760173886315,-155.646148,0.00028187,9]
[390829720,1760173886326,-155.26591,0.00028187,9]
[390829721,1760173886336,-157.100785,0.00028187,9]
[390829722,1760173886345,-154.7,0.0002821,15]
[390829723,1760173886354,-1000.0,0.00028242,2]
[390829724,1760173886364,-154.7,0.0002831,15]
[390829725,1760173886374,-500.0,0.00028314,10]
[390829726,1760173886383,-500.0,0.00028315,20]
[390829727,1760173886391,-500.0,0.00028315,20]
[390829728,1760173886400,-500.0,0.00028315,20]
[390829729,1760173886410,-555.9534413,0.00028315,20]
[390829730,1760173886419,-1817.81639578,0.00028316,5]
[390829731,1760173886429,-2000.0,0.00028316,5]
[390829732,1760173886440,-2000.0,0.00028316,5]
[390829733,1760173886449,-2000.0,0.00028316,5]
[390829734,1760173886459,-1000.0,0.00028316,5]
[390829735,1760173886467,-152.0,0.000284,120]
[390829736,1760173886477,-200.0,0.000284,120]
[390829737,1760173886487,-154.7,0.0002841,15]
[390829738,1760173886499,-2000.0,0.00028416,5]
[390829739,1760173886508,-200.0,0.00028435,120]
[390829740,1760173886517,-200.0,0.00028448,120]
[390829741,1760173886527,-153.074656,0.0002845,9]
[390829742,1760173886536,-155.646148,0.0002845,9]
[390829743,1760173886545,-160.591914,0.0002845,9]
[390829744,1760173886555,-155.26591,0.0002845,9]
[390829745,1760173886564,-157.100785,0.0002845,9]
[390829746,1760173886573,-1500.0,0.00028468,5]
[390829747,1760173886582,-209.5564,0.0002848,2]
[390829748,1760173886592,-154.7,0.0002851,15]
[390829749,1760173886601,-500.0,0.00028516,5]
[390829750,1760173886610,-2000.0,0.00028516,5]
[390829751,1760173886619,-2000.0,0.00028516,5]
[390829752,1760173886628,-2000.0,0.00028516,5]
[390829753,1760173886637,-2000.0,0.00028516,5]
[390829754,1760173886645,-2000.0,0.00028516,5]
[390829755,1760173886655,-6339.42992914,0.00028531,2]
[390829756,1760173886664,-200.0,0.00028565,120]
[390829757,1760173886673,-209.5564,0.0002858,2]
[390829758,1760173886683,-500.0,0.00028588,10]
[390829759,1760173886692,-6012.61,0.000286,2]
[390829760,1760173886702,-600.0,0.00028608,2]
[390829761,1760173886711,-154.7,0.0002861,15]
[390829762,1760173886720,-2000.0,0.00028616,5]
[390829763,1760173886729,-2000.0,0.00028616,5]
[390829764,1760173886738,-357.0,0.00028648,2]
[390829765,1760173886749,-151.0,0.00028657,9]
[390829766,1760173886758,-151.0,0.00028657,9]
[390829767,1760173886767,-151.0,0.00028657,9]
[390829768,1760173886778,-151.00000003,0.00028657,9]
[390829769,1760173886788,-500.0,0.00028657,9]
[390829770,1760173886796,-151.0,0.00028657,9]
[390829771,1760173886805,-500.0,0.00028657,9]
[390829772,1760173886815,-151.0,0.00028657,9]
[390829773,1760173886824,-500.0,0.00028657,9]
[390829774,1760173886834,-500.0,0.00028657,9]
[390829775,1760173886843,-500.0,0.00028657,9]
[390829776,1760173886851,-151.0,0.00028657,9]
[390829777,1760173886860,-151.0,0.00028657,9]
[390829778,1760173886870,-151.0,0.00028657,9]
[390829779,1760173886879,-272.11471048,0.00028657,9]
[390829780,1760173886888,-172.80349834,0.00028657,9]
[390829781,1760173886897,-500.0,0.00028657,9]
[390829782,1760173886906,-500.0,0.00028657,9]
[390829783,1760173886916,-151.0,0.00028657,9]
[390829784,1760173886925,-500.0,0.00028657,9]
[390829785,1760173886934,-500.0,0.00028657,9]
[390829786,1760173886944,-500.0,0.00028657,9]
[390829787,1760173886953,-500.0,0.00028657,9]
[390829788,1760173886962,-303.90261474,0.00028657,9]
[390829789,1760173886972,-151.0,0.00028657,9]
[390829790,1760173886980,-482.0,0.00028657,9]
[390829791,1760173886991,-500.0,0.00028657,9]
[390829792,1760173887000,-500.0,0.00028657,9]
[390829793,1760173887009,-151.0,0.00028657,9]
[390829794,1760173887019,-500.0,0.00028657,9]
[390829795,1760173887028,-500.0,0.00028657,9]
[390829796,1760173887037,-153.074656,0.00028668,10]
[390829797,1760173887046,-155.646148,0.00028668,10]
[390829798,1760173887055,-155.26591,0.00028668,10]
[390829799,1760173887064,-157.100785,0.00028668,10]
[390829800,1760173887073,-209.5564,0.0002868,2]
[390829801,1760173887083,-12742.21,0.000287,2]
[390829802,1760173887092,-151.0,0.000287,30]
[390829803,1760173887101,-151.0,0.000287,30]
[390829804,1760173887110,-460.0,0.00028701,2]
[390829805,1760173887121,-154.7,0.0002871,15]
[390829806,1760173887130,-151.0,0.00028712,9]
[390829807,1760173887139,-151.0,0.00028712,9]
[390829808,1760173887149,-151.0,0.00028712,9]
[390829809,1760173887159,-500.0,0.00028712,9]
[390829810,1760173887168,-151.0,0.00028712,9]
[390829811,1760173887177,-500.0,0.00028712,9]
[390829812,1760173887186,-151.0,0.00028712,9]
[390829813,1760173887196,-500.0,0.00028712,9]
[390829814,1760173887205,-500.0,0.00028712,9]
[390829815,1760173887214,-500.0,0.00028712,9]
[390829816,1760173887224,-151.0,0.00028712,9]
[390829817,1760173887233,-151.0,0.00028712,9]
[390829818,1760173887250,-151.0,0.00028712,9]
[390829819,1760173887260,-500.0,0.00028712,9]
[390829820,1760173887270,-637.23768045,0.00028712,9]
[390829821,1760173887283,-151.0,0.00028712,9]
[390829822,1760173887292,-500.0,0.00028712,9]
[390829823,1760173887301,-500.0,0.00028712,9]
[390829824,1760173887311,-151.0,0.00028712,9]
[390829825,1760173887321,-482.0,0.00028712,9]
[390829826,1760173887330,-500.0,0.00028712,9]
[390829827,1760173887340,-500.0,0.00028712,9]
[390829828,1760173887349,-151.0,0.00028712,9]
[390829829,1760173887358,-500.0,0.00028712,9]
[390829830,1760173887368,-500.0,0.00028712,9]
[390829831,1760173887377,-357.0,0.00028742,7]
[390829832,1760173887387,-357.0,0.00028759,2]
[390829833,1760173887396,-391.0,0.00028765,2]
[390829834,1760173887405,-151.0,0.00028767,9]
[390829835,1760173887415,-151.0,0.00028767,9]
[390829836,1760173887424,-151.0,0.00028767,9]
[390829837,1760173887434,-500.0,0.00028767,9]
[390829838,1760173887442,-151.0,0.00028767,9]
[390829839,1760173887451,-500.0,0.00028767,9]
[390829840,1760173887461,-151.38969691,0.00028767,9]
[390829841,1760173887470,-272.24162893,0.00028767,9]
[390829842,1760173887479,-500.0,0.00028767,9]
[390829843,1760173887488,-549.0298258,0.00028767,9]
[390829844,1760173887499,-151.79884191,0.00028767,9]
[390829845,1760173887508,-500.0,0.00028767,9]
[390829846,1760173887517,-151.0,0.00028767,9]
[390829847,1760173887526,-500.0,0.00028767,9]
[390829848,1760173887535,-500.0,0.00028767,9]
[390829849,1760173887544,-263.64862883,0.00028767,9]
[390829850,1760173887554,-482.0,0.00028767,9]
[390829851,1760173887563,-500.0,0.00028767,9]
[390829852,1760173887572,-500.0,0.00028767,9]
[390829853,1760173887581,-188.12218366,0.00028767,9]
[390829854,1760173887590,-500.0,0.00028767,9]
[390829855,1760173887599,-500.0,0.00028767,9]
[390829856,1760173887609,-735.65,0.00028767,60]
[390829857,1760173887618,-735.65,0.00028767,60]
[390829858,1760173887627,-735.65,0.00028767,60]
[390829859,1760173887637,-735.65,0.00028767,60]
[390829860,1760173887646,-735.65,0.00028767,60]
[390829861,1760173887655,-735.65,0.00028767,60]
[390829862,1760173887664,-735.65,0.00028767,60]
[390829863,1760173887673,-735.65,0.00028767,60]
[390829864,1760173887682,-735.65,0.00028767,60]
[390829865,1760173887692,-735.65,0.00028767,60]
[390829866,1760173887701,-735.65,0.00028767,60]
[390829867,1760173887710,-735.65,0.00028767,60]
[390829868,1760173887719,-735.65,0.00028767,60]
[390829869,1760173887728,-735.65,0.00028767,60]
[390829870,1760173887738,-735.65,0.00028767,60]
[390829871,1760173887750,-735.65,0.00028767,60]
[390829872,1760173887759,-735.65,0.00028767,60]
[390829873,1760173887768,-735.65,0.00028767,60]
[390829874,1760173887778,-735.65,0.00028767,60]
[390829875,1760173887787,-735.65,0.00028767,60]
[390829876,1760173887796,-735.65,0.00028767,60]
[390829877,1760173887804,-735.65,0.00028767,60]
[390829878,1760173887813,-735.65,0.00028767,60]
[390829879,1760173887823,-735.87144144,0.00028767,60]
[390829880,1760173887832,-150.0,0.000288,5]
[390829881,1760173887841,-154.7,0.0002881,15]
[390829882,1760173887849,-151.0,0.00028821,9]
[390829883,1760173887858,-500.0,0.00028821,9]
[390829884,1760173887867,-201.65674452,0.00028821,9]
[390829885,1760173887876,-500.0,0.00028821,9]
[390829886,1760173887884,-500.0,0.00028821,9]
[390829887,1760173887893,-398.81232357,0.00028821,9]
[390829888,1760173887902,-151.0,0.00028821,9]
[390829889,1760173887912,-500.0,0.00028821,9]
[390829890,1760173887921,-500.0,0.00028821,9]
[390829891,1760173887930,-482.0,0.00028821,9]
[390829892,1760173887940,-500.0,0.00028821,9]
[390829893,1760173887949,-500.0,0.00028821,9]
[390829894,1760173887959,-500.0,0.00028821,9]
[390829895,1760173887968,-500.0,0.00028821,9]
[390829896,1760173887977,-357.0,0.00028826,7]
[390829897,1760173887987,-5757.23903697,0.00028835,23]
[390829898,1760173887999,-783.5617198,0.00028849,30]
[390829899,1760173888009,-500.0,0.00028862,10]
[390829900,1760173888018,-2500.0,0.00028864,5]
[390829901,1760173888028,-1000.0,0.00028864,5]
[390829902,1760173888038,-2500.0,0.00028864,5]
[390829903,1760173888047,-1952.825185,0.00028873,2]
[390829904,1760173888057,-500.0,0.00028876,9]
[390829905,1760173888066,-500.0,0.00028876,9]
[390829906,1760173888075,-500.0,0.00028876,9]
[390829907,1760173888084,-349.0,0.00028876,9]
[390829908,1760173888094,-482.0,0.00028876,9]
[390829909,1760173888190,-500.0,0.00028876,9]
[390829910,1760173888199,-349.0,0.00028876,9]
[390829911,1760173888209,-500.0,0.00028876,9]
[390829912,1760173888218,-6339.42992914,0.00028881,2]
[390829913,1760173888227,-600.0,0.00028906,2]
[390829914,1760173888236,-154.7952,0.0002891,15]
[390829915,1760173888249,-399.0,0.00028919,2]
[390829916,1760173888259,-500.0,0.0002893,20]
[390829917,1760173888268,-482.0,0.00028931,9]
[390829918,1760173888277,-500.0,0.00028931,9]
[390829919,1760173888287,-500.0,0.00028931,9]
[390829920,1760173888296,-500.0,0.00028939,5]
[390829921,1760173888306,-1000.0,0.00028964,5]
[390829922,1760173888316,-482.0,0.00028986,9]
[390829923,1760173888327,-500.0,0.00028986,9]
[390829924,1760173888337,-500.0,0.00028986,9]
[390829925,1760173888347,-189.7226975,0.00028986,30]
[390829926,1760173888357,-189.7226975,0.00028986,30]
[390829927,1760173888366,-189.7226975,0.00028986,30]
[390829928,1760173888375,-189.7226975,0.00028986,30]
[390829929,1760173888385,-189.7226975,0.00028986,30]
[390829930,1760173888394,-189.7226975,0.00028986,30]
[390829931,1760173888403,-189.7226975,0.00028986,30]
[390829932,1760173888412,-189.7226975,0.00028986,30]
[390829933,1760173888421,-1293.98877685,0.00028987,2]
[390829934,1760173888431,-1050.29,0.00029,2]
[390829935,1760173888439,-2351.0,0.00029008,2]
[390829936,1760173888448,-258.66814764,0.00029016,5]
[390829937,1760173888457,-482.0,0.00029041,9]
[390829938,1760173888466,-500.0,0.00029041,9]
[390829939,1760173888475,-500.0,0.00029041,9]
[390829940,1760173888484,-297.8851395,0.00029041,30]
[390829941,1760173888494,-153.0,0.00029041,30]
[390829942,1760173888504,-3532.35475184,0.00029057,2]
[390829943,1760173888513,-505.0,0.00029063,2]
[390829944,1760173888521,-1801.14070508,0.00029064,5]
[390829945,1760173888530,-2500.0,0.00029064,5]
[390829946,1760173888540,-2500.0,0.00029064,5]
[390829947,1760173888549,-2500.0,0.00029064,5]
[390829948,1760173888558,-2500.0,0.00029064,5]
[390829949,1760173888567,-7641.1,0.00029071,6]
[390829950,1760173888576,-391.0,0.00029079,2]
[390829951,1760173888585,-482.0,0.00029095,9]
[390829952,1760173888597,-500.0,0.00029095,9]
[390829953,1760173888613,-500.0,0.00029095,9]
[390829954,1760173888622,-200.0,0.000291,120]
[390829955,1760173888631,-335.84676443,0.0002913,5]
[390829956,1760173888641,-576.91,0.00029136,10]
[390829957,1760173888650,-482.0,0.0002915,9]
[390829958,1760173888659,-500.0,0.0002915,9]
[390829959,1760173888668,-500.0,0.0002915,9]
[390829960,1760173888677,-2500.0,0.00029164,5]
[390829961,1760173888686,-2500.0,0.00029164,5]
[390829962,1760173888695,-1050.29,0.00029174,2]
[390829963,1760173888704,-938.37072023,0.00029204,2]
[390829964,1760173888713,-482.0,0.00029205,9]
[390829965,1760173888722,-500.0,0.00029205,9]
[390829966,1760173888732,-430.86593593,0.00029205,9]
[390829967,1760173888742,-6339.42992914,0.00029231,2]
[390829968,1760173888751,-560.0,0.00029249,2]
[390829969,1760173888761,-1293.98877685,0.00029256,2]
[390829970,1760173888770,-482.0,0.0002926,9]
[390829971,1760173888780,-219.0,0.0002926,9]
[390829972,1760173888789,-153.0,0.0002926,30]
[390829973,1760173888798,-153.0,0.0002926,30]
[390829974,1760173888808,-153.0,0.0002926,30]
[390829975,1760173888817,-153.0,0.0002926,30]
[390829976,1760173888826,-153.0,0.0002926,30]
[390829977,1760173888835,-157.4448781,0.0002926,30]
[390829978,1760173888845,-905.65554789,0.00029292,2]
[390829979,1760173888854,-153.074656,0.00029314,10]
[390829980,1760173888863,-155.646148,0.00029314,10]
[390829981,1760173888872,-160.591914,0.00029314,10]
[390829982,1760173888882,-155.26591,0.00029314,10]
[390829983,1760173888891,-157.100785,0.00029314,10]
[390829984,1760173888900,-482.0,0.00029315,9]
[390829985,1760173888909,-300.0,0.00029348,5]
[390829986,1760173888919,-1050.29,0.00029348,2]
[390829987,1760173888928,-482.0,0.00029369,9]
[390829988,1760173888937,-155.26591,0.00029373,5]
[390829989,1760173888946,-153.074656,0.00029419,2]
[390829990,1760173888956,-155.26591,0.00029419,2]
[390829991,1760173888965,-482.0,0.00029424,9]
[390829992,1760173888974,-482.0,0.00029479,9]
[390829993,1760173888983,-1501.916373,0.000295,2]
[390829994,1760173888995,-153.074656,0.00029501,5]
[390829995,1760173889004,-155.26591,0.00029501,5]
[390829996,1760173889013,-1050.29,0.00029522,2]
[390829997,1760173889022,-482.0,0.00029534,9]
[390829998,1760173889032,-1293.98877686,0.00029565,2]
[390829999,1760173889041,-689.55727713,0.00029582,2]
[390830000,1760173889744,-4480.95636508,0.00024702,10]
[390830001,1760173889754,-1571.86,0.00024952,9]
[390830002,1760173889763,-1571.86,0.00025979,9]
[390830003,1760173889772,-1571.86,0.00025979,9]
[390830004,1760173889781,-1571.86,0.00025989,9]
[390830005,1760173889790,-1571.86,0.00025989,9]
[390830006,1760173889800,-1571.86,0.00025989,9]
[390830007,1760173889808,-1571.86,0.00025989,9]
[390830008,1760173889818,-1571.86,0.00025989,9]
[390830009,1760173889827,-1571.86,0.0002666,9]
[390830010,1760173889835,-1571.86,0.0002666,9]
[390830011,1760173889845,-1571.86,0.00026669,9]
[390830012,1760173889855,-1571.86,0.00026669,9]
[390830013,1760173889864,-1571.86,0.0002667,9]
[390830014,1760173889874,-1571.86,0.0002667,9]
[390830015,1760173889883,-1571.86,0.0002667,9]
[390830016,1760173889893,-1571.86,0.0002667,9]
[390830017,1760173889903,-1571.86,0.0002667,9]
[390830018,1760173889912,-1571.86,0.0002667,9]
[390830019,1760173890013,-1571.86,0.0002667,9]
[390830020,1760173890023,-1571.86,0.0002667,9]
[390830021,1760173890032,-1571.86,0.0002667,9]
[390830022,1760173890042,-1571.86,0.0002667,9]
[390830023,1760173890051,-1571.86,0.0002667,9]
[390830024,1760173890060,-1571.88,0.0002667,9]
[390830025,1760173890070,-617.05496447,0.0002687,9]
[390830026,1760173890079,-500.0,0.0002687,9]
[390830027,1760173890088,-500.0,0.0002687,9]
[390830028,1760173890097,-500.0,0.0002687,9]
[390830029,1760173890106,-500.0,0.0002687,9]
[390830030,1760173890115,-500.0,0.0002687,9]
[390830031,1760173890125,-500.0,0.0002687,9]
[390830032,1760173890134,-500.0,0.0002687,9]
[390830033,1760173890143,-500.0,0.0002687,9]
[390830034,1760173890152,-500.0,0.00026872,9]
[390830035,1760173890161,-500.0,0.00026872,9]
[390830036,1760173890171,-1649.65,0.00026879,9]
[390830037,1760173890181,-1649.65,0.00026879,9]
[390830038,1760173890190,-1649.65,0.00026879,9]
[390830039,1760173890200,-1649.65,0.00026879,9]
[390830040,1760173890209,-1649.65,0.00026879,9]
[390830041,1760173890219,-1649.65,0.00026879,9]
[390830042,1760173890229,-1649.65,0.00026879,9]
[390830043,1760173890244,-1649.65,0.00026879,9]
[390830044,1760173890259,-1649.65,0.00026879,9]
[390830045,1760173890269,-1649.65,0.00026879,9]
[390830046,1760173890279,-500.0,0.00026879,9]
[390830047,1760173890289,-500.0,0.00026879,9]
[390830048,1760173890299,-500.0,0.00026879,9]
[390830049,1760173890308,-500.0,0.00026879,9]
[390830050,1760173890318,-500.0,0.00026879,9]
[390830051,1760173890327,-279.94,0.00026879,9]
[390830052,1760173890337,-1649.65,0.00027007,9]
[390830053,1760173890346,-1649.65,0.00027088,9]
[390830054,1760173890356,-1649.65,0.00027088,9]
[390830055,1760173890366,-1649.65,0.00027089,9]
[390830056,1760173890375,-1649.65,0.00027296,9]
[390830057,1760173890384,-151.0,0.00027396,7]
[390830058,1760173890394,-3290.897127,0.00027396,7]
[390830059,1760173890403,-3290.897127,0.00027396,7]
[390830060,1760173890413,-3290.897127,0.00027396,7]
[390830061,1760173890424,-3290.897127,0.00027396,7]
[390830062,1760173890434,-1649.65,0.00027396,9]
[390830063,1760173890443,-1649.65,0.00027396,9]
[390830064,1760173890453,-1649.65,0.00027396,9]
[390830065,1760173890463,-1649.65,0.00027396,9]
[390830066,1760173890473,-3290.897127,0.000287,30]
[390830067,1760173890484,-3290.897127,0.000287,30]
[390830068,1760173890495,-3290.897127,0.000287,30]
[390830069,1760173890505,-3290.897127,0.000287,30]
[390830070,1760173890515,-297.8851395,0.00029041,30]
[390830071,1760173890524,-5649.87265201,0.00029582,2]
[390830072,1760173890535,-482.0,0.00029589,9]
[390830073,1760173890544,-2478.22634105,0.00029612,5]
[390830074,1760173890555,-1197.46945713,0.00029612,5]
[390830075,1760173890565,-3000.0,0.00029612,5]
[390830076,1760173890575,-867.96641901,0.00029612,5]
[390830077,1760173890585,-153.074656,0.0002963,5]
[390830078,1760173890595,-155.646148,0.0002963,5]
[390830079,1760173890604,-155.26591,0.0002963,5]
[390830080,1760173890614,-482.0,0.00029643,9]
[390830081,1760173890624,-2612.3045459,0.00029654,2]
[390830082,1760173890633,-160.6480317,0.00029673,2]
[390830083,1760173890643,-153.074656,0.00029676,30]
[390830084,1760173890652,-155.26591,0.00029676,30]
[390830085,1760173890662,-153.074656,0.00029682,20]
[390830086,1760173890671,-155.26591,0.00029682,20]
[390830087,1760173890680,-2200.669,0.00029683,2]
[390830088,1760173890690,-500.157,0.00029683,2]
[390830089,1760173890699,-1050.29,0.00029696,2]
[390830090,1760173890709,-482.0,0.00029698,9]
[390830091,1760173890718,-887.71567513,0.00029712,5]
[390830092,1760173890727,-3000.0,0.00029712,5]
[390830093,1760173890737,-153.074656,0.00029713,20]
[390830094,1760173890747,-155.26591,0.00029713,20]
[390830095,1760173890756,-153.074656,0.00029723,30]
[390830096,1760173890766,-155.646148,0.00029723,30]